bitfinex/quotes_ETHUSD_20250126
["timestamp","ask_amount","ask_price","bid_price","bid_amount"]
[1737890620010,0.4801,3314.7,3313.7,1.0294]
[1737890620216,0.06560664,3314.2,3313.7,1.0294]
[1737890620511,0.4801,3314.7,3313.7,1.0294]
[1737890620711,0.06560664,3314.1,3313.7,1.0294]
[1737890620917,0.4801,3314.7,3313.7,1.63145956]
[1737890621087,0.4801,3314.7,3313.8,0.16314596]
[1737890621612,0.4801,3314.7,3313.8,0.19331898]
[1737890622915,0.4801,3314.7,3313.8,0.16314596]
[1737890623623,0.4801,3314.7,3313.9,0.203]
[1737890628340,0.4801,3314.7,3313.8,0.16314596]
[1737890628528,0.4801,3314.7,3313.8,0.202]
[1737890631622,0.4801,3314.5,3313.8,0.202]
[1737890632027,0.06566674,3314.4,3313.8,0.202]
[1737890632232,0.4801,3314.3,3313.8,0.202]
[1737890632600,0.06558031,3314.2,3313.8,0.202]
[1737890632937,0.4801,3314.3,3313.8,0.202]
[1737890633234,0.4801,3314.3,3313.6,0.6094136]
[1737890633428,0.06558031,3314.2,3313.6,0.6094136]
[1737890633733,0.06558031,3314.2,3313.6,0.77233496]
[1737890635642,0.06558031,3314.2,3313.6,0.6094136]
[1737890635944,0.4801,3314.1,3313.5,0.202]
[1737890636253,0.06566677,3314.0,3313.5,0.202]
[1737890636609,0.06566677,3314.0,3313.2,0.202]
[1737890637246,0.06566677,3314.0,3313.3,0.61306195]
[1737890638322,0.4801,3313.8,3312.7,0.7827]
[1737890638507,0.55,3313.7,3312.7,0.7827]
[1737890638711,0.4801,3313.6,3312.7,0.7827]
[1737890638955,0.54548864,3313.6,3312.7,0.7827]
[1737890639650,0.55,3313.5,3312.7,0.7827]
[1737890639855,0.61533977,3313.5,3312.7,0.7827]
[1737890640376,0.4801,3313.4,3312.4,0.7915894]
[1737890640521,0.4801,3313.4,3312.4,0.94901834]
[1737890640875,0.54527812,3313.3,3312.4,0.35942894]
[1737890641069,0.54527812,3313.3,3312.4,0.15742894]
[1737890641219,0.54527812,3313.3,3312.2,0.7827]
[1737890641420,0.4801,3313.3,3312.2,0.9847]
[1737890642271,0.4801,3313.3,3312.1,0.202]
[1737890642473,0.06499764,3313.2,3312.1,0.202]
[1737890642656,0.4801,3313.1,3312.1,0.202]
[1737890643566,0.4801,3313.1,3312.2,0.62845603]
[1737890644189,0.06479458,3313.0,3312.2,0.83045603]
[1737890645272,0.06479458,3313.0,3312.2,0.62845603]
[1737890645835,0.06479458,3313.0,3312.2,0.8002697]
[1737890646258,0.06479458,3313.0,3311.9,0.7827]
[1737890646454,0.4801,3312.9,3312.0,0.202]
[1737890646661,0.54486825,3312.9,3312.1,0.60671898]
[1737890649152,0.4801,3312.9,3312.1,0.60671898]
[1737890650275,0.4801,3313.2,3311.6,1.22078223]
[1737890650509,0.55,3313.6,3311.6,0.8056]
[1737890650694,0.55,3313.6,3311.4,1.0066]
[1737890650894,1.0301,3313.3,3311.4,1.0066]
[1737890651207,0.55,3313.0,3311.5,0.202]
[1737890651503,0.55,3312.6,3311.8,0.61824305]
[1737890651702,0.55,3312.4,3311.8,0.61824305]
[1737890651922,0.4801,3312.3,3311.8,0.61824305]
[1737890652273,0.4801,3312.1,3311.8,0.61824305]
[1737890652909,0.0643432,3312.0,3311.8,0.61824305]
[1737890653220,0.4801,3311.9,3311.0,0.202]
[1737890653569,0.4801,3311.9,3311.3,0.61196525]
[1737890653816,0.064204,3311.8,3311.3,0.61196525]
[1737890655698,0.064204,3311.8,3311.0,0.202]
[1737890655994,0.064204,3311.8,3310.9,0.8056]
[1737890656181,0.4801,3311.7,3311.2,0.61456543]
[1737890656503,0.06416637,3311.6,3311.2,0.61456543]
[1737890656672,0.55,3313.1,3311.2,0.61456543]
[1737890657169,0.06176032,3313.0,3311.2,0.61456543]
[1737890657710,0.26380244,3313.0,3311.2,0.61456543]
[1737890659009,0.06176032,3313.0,3311.3,0.03019582]
[1737890659775,0.55,3312.9,3311.3,0.03019582]
[1737890659975,0.55,3312.7,3311.3,0.03019582]
[1737890660187,0.55,3312.7,3311.2,0.64476125]
[1737890660375,0.06167752,3312.6,3311.2,0.64476125]
[1737890664322,0.06167752,3312.6,3311.2,0.23119582]
[1737890664626,0.55,3312.5,3311.2,0.23119582]
[1737890664784,0.55,3312.5,3311.2,0.36016862]
[1737890664983,0.06175657,3312.4,3311.2,0.36016862]
[1737890665179,0.55,3312.5,3311.2,0.36016862]
[1737890665396,0.55,3313.1,3311.2,0.36016862]
[1737890665595,0.55,3313.1,3311.0,0.5957904]
[1737890665798,0.55,3312.9,3311.0,0.5957904]
[1737890666200,0.55,3313.0,3311.0,0.5957904]
[1737890666400,0.55,3312.7,3311.0,0.5957904]
[1737890666613,0.06177914,3312.6,3311.0,0.5957904]
[1737890666812,0.55,3312.5,3310.6,0.9657]
[1737890667033,0.55,3312.8,3310.6,0.7647]
[1737890667235,0.55,3312.3,3310.6,0.7647]
[1737890667435,0.55,3312.3,3310.6,0.79490146]
[1737890667600,0.55,3312.1,3310.7,0.59989555]
[1737890667999,0.55,3312.5,3310.3,0.201]
[1737890668199,0.55,3311.9,3310.1,0.7647]
[1737890668398,0.06143664,3311.8,3310.2,0.58987415]
[1737890668598,0.55,3311.7,3310.2,0.58987415]
[1737890668988,0.55,3311.5,3310.2,0.58987415]
[1737890669395,0.06116178,3311.4,3310.2,0.58987415]
[1737890669741,5.4228303,3312.6,3310.3,0.030206]
[1737890669893,0.06105632,3311.3,3310.3,0.030206]
[1737890670092,0.55,3312.4,3310.2,0.58987415]
[1737890670335,0.06105632,3311.2,3310.2,0.58987415]
[1737890670536,0.55,3312.4,3310.2,0.58987415]
[1737890670721,0.06105632,3311.1,3310.2,0.62007588]
[1737890670924,0.55,3312.4,3310.2,0.62007588]
[1737890671134,0.06105632,3311.0,3310.2,0.62007588]
[1737890671339,0.32323501,3312.3,3310.2,0.62007588]
[1737890671540,0.06106386,3310.9,3310.2,0.62007588]
[1737890671723,5.364,3312.1,3310.2,0.62007588]
[1737890672027,2.364,3312.1,3309.6,0.7647]
[1737890672206,0.55,3311.9,3309.6,0.7647]
[1737890672403,0.06070279,3311.8,3309.6,0.7647]
[1737890672618,0.55,3311.7,3309.6,1.5741231]
[1737890673016,0.55,3311.5,3309.7,0.03020871]
[1737890673218,0.55,3311.5,3309.6,1.5741231]
[1737890673422,0.55,3311.5,3309.7,0.15741231]
[1737890673617,0.55,3311.3,3309.7,0.15741231]
[1737890674019,0.06055964,3311.2,3309.8,0.03020872]
[1737890674439,0.06055964,3311.2,3309.9,0.7647]
[1737890675110,0.06055964,3311.2,3309.9,0.79490868]
[1737890676916,0.06055964,3311.2,3309.9,0.7647]
[1737890677233,0.06055964,3311.2,3310.0,0.79490866]
[1737890677535,0.55,3312.2,3310.0,0.79490866]
[1737890677742,0.06042781,3311.1,3310.2,0.7647]
[1737890678033,0.55,3312.2,3310.2,0.79490589]
[1737890678534,0.55,3312.0,3310.2,0.79490589]
[1737890678903,0.55,3311.8,3310.2,0.79490589]
[1737890679329,0.55,3312.2,3310.2,0.79490589]
[1737890679526,0.55,3311.6,3310.2,0.79490589]
[1737890679908,0.06047302,3311.5,3310.2,0.7647]
[1737890680111,0.55,3311.9,3310.2,0.7647]
[1737890680343,0.06049185,3311.4,3310.2,0.7647]
[1737890680555,0.55,3311.9,3310.2,0.7647]
[1737890680754,0.06048809,3311.3,3310.2,0.7647]
[1737890681052,0.55,3311.9,3310.2,0.7647]
[1737890681566,0.06056719,3311.8,3309.8,0.8101]
[1737890681974,0.55,3311.6,3309.8,0.8101]
[1737890682560,0.55,3311.4,3309.8,0.8101]
[1737890682926,0.55,3311.1,3309.8,0.8101]
[1737890683236,0.55,3311.2,3309.8,0.8101]
[1737890683423,0.06037884,3311.1,3309.8,0.8101]
[1737890685174,0.55,3311.6,3309.8,0.8101]
[1737890685376,0.06037884,3311.0,3309.8,0.8101]
[1737890685530,0.55,3311.6,3309.8,0.8101]
[1737890685870,0.06037884,3310.9,3309.8,0.8101]
[1737890686041,0.55,3311.4,3309.8,0.8101]
[1737890686439,0.06037884,3311.3,3309.8,0.8101]
[1737890686663,0.55,3311.2,3309.8,0.8101]
[1737890687063,0.06037884,3311.1,3309.8,0.8101]
[1737890687439,0.55,3311.4,3309.8,0.8101]
[1737890688041,0.55,3311.2,3309.8,0.8101]
[1737890688280,0.55,3311.4,3309.8,0.8101]
[1737890688476,0.55,3311.2,3309.8,0.8101]
[1737890688988,0.55,3311.0,3309.8,0.8101]
[1737890689386,0.55,3311.4,3309.8,0.8101]
[1737890689559,0.55,3310.8,3309.8,0.8101]
[1737890689960,0.06037884,3310.7,3309.8,0.8101]
[1737890690262,0.55,3311.2,3309.8,0.8101]
[1737890690465,0.55,3311.0,3309.8,0.8101]
[1737890691071,0.55,3310.8,3309.8,0.8101]
[1737890691490,2.364,3311.3,3309.8,0.8101]
[1737890692008,3.0,3311.4,3309.8,0.8101]
[1737890692189,0.06037884,3311.2,3309.8,0.8101]
[1737890692376,0.30603788,3311.2,3309.8,0.8101]
[1737890692697,0.06037884,3311.1,3309.8,0.8101]
[1737890693782,0.6076145,3311.5,3309.8,0.8101]
[1737890693983,0.06028841,3311.0,3309.8,0.8101]
[1737890694197,0.6076145,3311.5,3309.8,0.8101]
[1737890694419,0.06028841,3310.9,3309.8,0.8101]
[1737890694570,0.55,3311.4,3309.8,0.8101]
[1737890694769,0.06028841,3310.8,3309.8,0.8101]
[1737890695002,0.55,3311.4,3309.8,0.8101]
[1737890695293,0.06028841,3310.7,3309.8,0.8101]
[1737890695495,0.06028841,3310.7,3309.9,0.03020945]
[1737890695704,0.06028841,3310.7,3310.0,0.8101]
[1737890695900,3.55,3311.7,3310.0,0.8101]
[1737890696082,0.06029971,3310.6,3310.0,0.8101]
[1737890696282,0.55,3311.5,3310.0,0.8101]
[1737890696502,0.06029971,3311.4,3310.0,0.8101]
[1737890699211,0.06029971,3311.3,3310.0,0.8101]
[1737890699603,1.27139768,3311.6,3310.0,0.8101]
[1737890699909,0.42713977,3311.5,3310.0,0.8101]
[1737890700110,0.48542949,3311.5,3310.0,0.8101]
[1737890700309,0.43542949,3311.5,3310.0,0.8101]
[1737890700879,0.05828972,3311.5,3310.0,0.8101]
[1737890703310,0.05828972,3311.5,3310.1,0.55]
[1737890703646,3.0,3312.6,3310.2,0.8049]
[1737890703799,0.05822943,3311.4,3310.4,0.8049]
[1737890704131,0.55,3312.5,3310.6,0.8049]
[1737890704275,0.05828595,3311.3,3310.6,0.8049]
[1737890704480,0.60435443,3312.3,3310.6,0.8049]
[1737890704780,0.05828595,3312.2,3310.6,0.8049]
[1737890709151,0.55,3312.1,3310.6,0.8049]
[1737890709456,0.6086137,3312.1,3310.6,0.8049]
[1737890710452,0.2641,3312.0,3309.8,0.03020249]
[1737890710645,0.2641,3312.0,3310.0,0.59684636]
[1737890710846,0.05860617,3311.9,3310.0,0.59684636]
[1737890711957,0.05860617,3311.9,3310.1,0.03020399]
[1737890713556,0.05860617,3311.9,3310.2,0.7589]
[1737890713758,0.05860617,3311.9,3310.4,0.7589]
[1737890716184,0.05860617,3311.9,3310.5,0.78910394]
[1737890716500,0.2641,3312.2,3310.5,0.7589]
[1737890716648,0.05833337,3311.8,3310.5,0.7589]
[1737890716847,0.2641,3312.2,3310.5,0.7589]
[1737890717444,0.05833337,3312.1,3310.5,0.7589]
[1737890718780,0.05833337,3312.1,3310.6,0.78260263]
[1737890718984,0.60435443,3312.3,3310.6,0.78260263]
[1737890719385,0.60435443,3312.3,3310.6,0.7524]
[1737890719879,0.05822019,3312.2,3310.6,0.7524]
[1737890720784,3.726,3311.9,3310.6,0.7524]
[1737890720964,3.8141,3311.7,3310.6,0.7524]
[1737890721146,6.9901,3311.7,3310.6,0.7524]
[1737890721584,3.55,3311.5,3310.6,0.7524]
[1737890721986,0.55,3311.3,3310.6,0.7524]
[1737890722489,0.55,3311.4,3310.6,0.7524]
[1737890722673,0.05814107,3311.2,3310.6,0.7524]
[1737890722873,0.05813353,3311.3,3309.5,3.0]
[1737890723084,0.2641,3311.4,3309.6,0.7524]
[1737890723284,0.55,3311.1,3309.6,0.7524]
[1737890723584,0.8141,3311.4,3309.6,0.7524]
[1737890723787,0.05791126,3311.0,3309.6,0.7524]
[1737890723967,0.93141,3311.3,3309.6,0.7524]
[1737890724153,0.05791126,3310.9,3309.6,0.7524]
[1737890724350,0.59861217,3311.0,3309.6,0.7524]
[1737890724549,0.05791126,3310.8,3309.6,0.7524]
[1737890724781,0.59861217,3311.0,3309.7,0.7524]
[1737890724985,0.05791126,3310.7,3309.7,0.68752311]
[1737890725191,0.59861217,3311.0,3309.7,0.68752311]
[1737890725457,0.05791126,3310.6,3309.7,0.68752311]
[1737890725692,0.59861217,3311.0,3309.7,0.68752311]
[1737890726089,0.05776053,3310.9,3309.7,0.68752311]
[1737890726403,0.55,3311.2,3309.7,0.68752311]
[1737890726600,0.05759095,3310.8,3309.7,0.68752311]
[1737890726771,0.55,3311.3,3309.7,0.68752311]
[1737890727084,0.05759095,3310.7,3309.7,0.68752311]
[1737890727294,0.55,3311.1,3309.7,0.68752311]
[1737890727475,0.05759095,3310.6,3309.7,0.68752311]
[1737890727682,0.55,3311.1,3309.7,0.68752311]
[1737890727853,0.05759095,3310.5,3309.7,0.68752311]
[1737890728059,0.55,3311.1,3309.7,0.68752311]
[1737890728281,0.05759095,3310.4,3309.7,0.68752311]
[1737890728469,0.55,3311.1,3309.7,0.68752311]
[1737890728670,0.05759095,3310.3,3309.7,0.68752311]
[1737890728959,0.55,3311.1,3309.7,0.68752311]
[1737890729183,0.05759095,3310.2,3309.7,0.68752311]
[1737890729381,0.55,3311.1,3309.7,0.68752311]
[1737890729586,0.05759095,3310.1,3309.7,0.68752311]
[1737890729812,0.55,3311.1,3309.7,0.68752311]
[1737890730005,0.05759095,3310.0,3309.7,0.68752311]
[1737890730323,0.55,3311.1,3309.7,0.68752311]
[1737890730526,0.05757588,3309.9,3309.7,0.68752311]
[1737890730733,0.55,3311.1,3309.7,0.68752311]
[1737890730931,0.05757588,3309.8,3309.7,0.68752311]
[1737890731218,0.55,3311.1,3309.7,0.68752311]
[1737890731718,0.05753819,3311.0,3309.7,0.68752311]
[1737890732513,0.596438,3310.9,3309.7,0.68752311]
[1737890732718,0.329,3311.1,3309.7,0.68752311]
[1737890732886,0.596438,3310.9,3309.7,0.68752311]
[1737890733285,0.05751937,3310.8,3309.7,0.68752311]
[1737890733917,0.55,3310.7,3309.7,0.68752311]
[1737890734105,0.05745947,3310.6,3309.7,0.68752311]
[1737890734285,0.38645947,3310.6,3309.7,0.68752311]
[1737890735823,0.98676396,3310.6,3309.7,0.68752311]
[1737890736119,0.1536764,3310.5,3309.7,0.68752311]
[1737890736322,0.05739539,3310.4,3309.7,0.68752311]
[1737890740699,0.55,3310.8,3309.7,0.68752311]
[1737890740895,0.05533358,3310.7,3309.7,0.68752311]
[1737890741909,0.64615258,3310.7,3309.7,0.68752311]
[1737890743190,0.05533358,3310.7,3309.7,0.68752311]
[1737890744830,3.05533358,3310.7,3309.7,0.68752311]
[1737890745135,0.42216534,3310.6,3309.7,0.68752311]
[1737890745337,0.05535248,3310.6,3309.7,0.68752311]
[1737890745501,0.596438,3310.9,3309.7,0.68752311]
[1737890745699,0.05535248,3310.8,3309.7,0.68752311]
[1737890746509,0.596438,3311.0,3309.7,0.68752311]
[1737890746689,0.05540155,3310.9,3309.7,0.68752311]
[1737890754292,0.55,3311.1,3309.7,0.68752311]
[1737890754537,0.05502955,3311.0,3309.7,0.68752311]
[1737890765229,0.879,3310.9,3309.7,0.68752311]
[1737890765777,0.05468997,3310.8,3309.7,0.68752311]
[1737890766762,0.55,3310.7,3309.7,0.68752311]
[1737890766963,0.60478435,3310.7,3309.7,0.68752311]
[1737890768633,0.60587018,3310.4,3309.7,0.68752311]
[1737890769373,0.05471262,3310.3,3309.7,0.68752311]
[1737890769571,0.55,3310.8,3309.7,0.68752311]
[1737890769887,0.05471262,3310.2,3309.7,0.68752311]
[1737890770026,0.3879,3310.7,3309.7,0.68752311]
[1737890770232,0.05471262,3310.1,3309.7,0.68752311]
[1737890770458,0.60893707,3310.5,3309.7,0.68752311]
[1737890770765,0.329,3310.4,3309.7,0.68752311]
[1737890771146,0.05465219,3310.3,3309.7,0.68752311]
[1737890772671,3.0,3311.0,3309.7,0.68752311]
[1737890772841,0.60242709,3310.9,3309.7,0.68752311]
[1737890773175,0.65690182,3310.9,3309.7,0.68752311]
[1737890780692,0.40810182,3310.9,3309.7,0.68752311]
[1737890781384,0.879,3310.8,3309.7,0.68752311]
[1737890781565,0.93197229,3310.8,3309.7,0.68752311]
[1737890781771,1.54417464,3310.8,3309.7,0.68752311]
[1737890781966,0.18978017,3310.7,3309.7,0.68752311]
[1737890782160,0.55,3310.6,3309.7,0.68752311]
[1737890782361,0.05297229,3310.5,3309.7,0.68752311]
[1737890787293,0.329,3310.4,3309.7,0.68752311]
[1737890787697,0.05267024,3310.3,3309.7,0.68752311]
[1737890789193,0.05267024,3310.3,3308.6,0.7596]
[1737890790996,0.59788617,3310.2,3308.6,0.7596]
[1737890791157,0.65044691,3310.2,3308.6,0.7596]
[1737890793474,0.55,3310.1,3308.6,0.7596]
[1737890794093,0.05256074,3310.0,3308.6,0.7596]
[1737890794295,0.879,3309.9,3308.6,0.7596]
[1737890794662,0.05234545,3309.8,3308.6,0.7596]
[1737890795022,0.55,3309.7,3308.6,0.7596]
[1737890795164,0.6023379,3309.7,3308.6,0.7596]
[1737890795369,0.59256841,3309.3,3308.6,0.7596]
[1737890795588,0.05223217,3309.2,3308.6,0.7596]
[1737890798873,0.55,3309.1,3308.6,0.7596]
[1737890799071,0.0516961,3309.0,3308.6,0.7596]
[1737890800200,0.55,3308.9,3308.6,0.7596]
[1737890800402,0.60169277,3308.9,3308.6,0.7596]
[1737890801704,0.93069277,3308.9,3307.0,0.753]
[1737890801905,0.93069277,3308.9,3307.3,0.753]
[1737890802104,0.93069277,3308.9,3307.2,0.00887171]
[1737890802105,0.93069277,3308.9,3307.5,0.753]
[1737890802301,0.93069277,3308.9,3307.6,0.753]
[1737890804223,0.05169277,3308.9,3307.7,0.03023203]
[1737890804390,0.59256841,3309.3,3307.8,0.8275]
[1737890804603,0.05154537,3308.8,3307.8,0.8275]
[1737890804791,0.55,3309.2,3307.8,0.8275]
[1737890805097,0.05154537,3308.7,3307.8,0.8275]
[1737890805405,0.05154537,3308.6,3307.8,0.8275]
[1737890805624,0.55,3309.2,3307.8,0.8275]
[1737890805773,0.05154537,3308.5,3307.8,0.8275]
[1737890805970,0.55,3309.2,3307.8,0.8275]
[1737890806196,0.05154537,3309.1,3307.8,0.8275]
[1737890809431,0.55,3309.0,3307.8,0.8275]
[1737890809637,0.6001187,3309.0,3307.8,0.8275]
[1737890812778,0.36001187,3308.9,3307.8,0.8275]
[1737890813214,0.0501187,3308.8,3307.8,0.8275]
[1737890817472,0.59256841,3309.3,3307.8,0.8275]
[1737890817671,0.0501187,3308.7,3307.8,0.8275]
[1737890817951,0.55,3309.2,3307.8,0.8275]
[1737890818167,0.0501187,3308.6,3307.8,0.8275]
[1737890818304,0.55,3309.2,3307.8,0.8275]
[1737890818505,0.0501187,3308.5,3307.8,0.8275]
[1737890818730,0.55,3309.2,3307.8,0.8275]
[1737890818932,0.0501187,3308.4,3307.8,0.8275]
[1737890819241,0.55,3309.2,3307.8,0.8275]
[1737890819445,0.0501187,3308.3,3307.8,0.8275]
[1737890819622,0.55,3309.2,3307.8,0.8275]
[1737890820081,0.0501792,3309.1,3307.8,0.8275]
[1737890820482,3.0501792,3309.1,3307.8,0.8275]
[1737890820758,3.77188105,3309.1,3307.8,0.8275]
[1737890821808,3.0501792,3309.1,3307.9,0.03022863]
[1737890822014,3.0501792,3309.1,3307.9,0.83682863]
[1737890822305,0.0501792,3309.1,3307.9,0.83682863]
[1737890824166,0.0501792,3309.1,3308.2,0.61831677]
[1737890824374,3.0,3310.0,3308.4,0.8066]
[1737890824584,0.65269124,3309.9,3308.6,0.8066]
[1737890825800,0.65269124,3309.9,3308.8,0.8066]
[1737890829882,4.99,3309.1,3307.4,0.8066]
[1737890830225,3.0,3308.8,3307.6,0.8066]
[1737890830613,0.60048328,3308.7,3307.6,0.8066]
[1737890830810,0.36004833,3308.6,3307.6,0.8066]
[1737890830974,0.0504644,3308.5,3307.6,0.8066]
[1737890831385,0.55,3308.8,3307.6,0.8066]
[1737890831578,0.0504644,3308.7,3307.6,0.8066]
[1737890834415,0.61803456,3308.6,3307.6,0.8066]
[1737890835219,0.0504644,3308.5,3307.6,0.8066]
[1737890836319,0.55,3308.4,3307.6,0.8066]
[1737890836513,3.0,3308.3,3307.6,0.8066]
[1737890836718,0.65742709,3308.2,3307.6,0.8066]
[1737890837415,0.0499693,3308.1,3307.6,0.8066]
[1737890870569,3.0,3308.3,3307.6,0.8066]
[1737890870752,0.04942884,3308.0,3307.6,0.8066]
[1737890870922,3.0,3308.3,3307.6,0.8066]
[1737890871122,0.04944776,3307.9,3307.6,0.8066]
[1737890871356,3.60242709,3308.3,3307.6,0.8066]
[1737890871543,0.04944776,3307.8,3307.6,0.8066]
[1737890871864,0.04944776,3307.7,3307.6,0.8066]
[1737890872224,3.60242709,3308.3,3307.6,0.8066]
[1737890872426,0.6626698,3308.2,3307.6,0.8066]
[1737890872825,0.04950069,3308.1,3307.6,0.8066]
[1737890873422,3.02427089,3308.4,3307.6,0.8066]
[1737890873722,0.04959897,3308.3,3307.6,0.8066]
[1737890873922,3.0,3309.3,3307.6,0.8066]
[1737890874222,0.61630188,3308.8,3307.6,0.8066]
[1737890874755,0.04959897,3308.7,3307.6,0.8066]
[1737890879966,0.59014351,3308.2,3307.6,1.42437625]
[1737890880239,0.04960653,3308.1,3307.7,0.8003]
[1737890880647,0.59014351,3308.2,3307.7,0.8003]
[1737890882962,0.04960653,3308.1,3307.7,0.8003]
[1737890884656,1.98542296,3308.7,3307.7,0.8003]
[1737890884870,0.0496368,3308.0,3307.7,0.8003]
[1737890885082,0.50096939,3308.6,3307.7,0.8003]
[1737890885376,0.04798325,3307.9,3307.7,0.8003]
[1737890885666,0.50096939,3308.6,3307.7,0.8003]
[1737890885866,0.04798325,3307.8,3307.7,0.8003]
[1737890886174,0.60145056,3307.8,3307.7,0.8003]
[1737890886336,0.64943381,3307.8,3307.7,0.8003]
[1737890886540,0.04798325,3307.8,3307.7,0.8003]
[1737890886766,1.98542296,3308.7,3307.7,0.8003]
[1737890886940,0.04798325,3307.8,3307.7,0.8003]
[1737890887140,0.50096939,3308.6,3307.7,0.8003]
[1737890887340,0.04798325,3307.8,3307.7,0.8003]
[1737890887571,1.98542296,3308.7,3307.7,0.8003]
[1737890887776,3.02427089,3308.8,3307.9,0.8003]
[1737890887975,3.02427089,3308.8,3308.0,0.83052596]
[1737890888199,3.02427089,3308.8,3308.3,0.59891101]
[1737890888400,3.02427089,3308.8,3307.6,0.7503]
[1737890888971,3.02427089,3308.8,3307.8,0.7503]
[1737890891002,3.02427089,3308.8,3308.0,0.7503]
[1737890892388,0.04659526,3308.7,3308.0,0.7503]
[1737890895182,0.04659526,3308.7,3308.1,0.7805248]
[1737890897684,0.60687211,3309.2,3308.3,0.61315906]
[1737890897995,0.04692827,3309.1,3308.4,0.7503]
[1737890900267,0.04692827,3309.1,3308.5,0.0302219]
[1737890900585,0.04692827,3309.1,3308.6,0.7659]
[1737890901163,0.329,3309.0,3307.7,0.7659]
[1737890901379,0.37599637,3309.0,3307.7,0.7659]
[1737890902601,3.0,3308.8,3307.7,0.7659]
[1737890902787,0.60242709,3308.7,3307.7,0.7659]
[1737890902973,0.64924562,3308.7,3307.7,0.7659]
[1737890904172,3.67351651,3308.7,3307.7,0.7659]
[1737890904364,0.329,3308.6,3307.7,0.7659]
[1737890904564,0.61106088,3308.2,3307.7,0.7659]
[1737890905177,0.04662934,3308.1,3307.7,0.7659]
[1737890907190,0.59812134,3308.3,3307.7,0.7659]
[1737890907390,0.04660663,3308.0,3307.7,0.7659]
[1737890907567,0.59812134,3308.3,3307.7,0.7659]
[1737890907762,0.04662555,3307.9,3307.7,0.7659]
[1737890908090,0.04662555,3307.8,3307.7,0.7659]
[1737890908287,0.59812134,3308.3,3307.7,0.7659]
[1737890908491,0.04662555,3308.2,3307.7,0.7659]
[1737890925017,0.04662555,3308.2,3307.8,0.03023165]
[1737890925197,0.04662555,3308.2,3307.9,0.7555]
[1737890925395,3.62891529,3308.7,3307.9,0.7555]
[1737890925583,0.04629326,3308.1,3307.9,0.7555]
[1737890925784,3.62891529,3308.7,3307.9,0.7555]
[1737890925984,0.04629326,3308.0,3307.9,0.7555]
[1737890926205,3.62891529,3308.7,3307.9,0.7555]
[1737890926414,0.04629326,3308.0,3307.9,0.7555]
[1737890926932,3.62891529,3308.7,3307.9,0.7555]
[1737890927134,0.04629326,3308.6,3307.9,0.7555]
[1737890933517,2.34988147,3309.1,3307.9,0.7555]
[1737890933716,0.23498815,3309.0,3307.9,0.7555]
[1737890934022,0.04344168,3308.9,3307.9,0.7555]
[1737890944940,0.04344168,3308.9,3308.0,0.84272494]
[1737890945128,2.34988147,3309.1,3308.0,0.84272494]
[1737890945329,0.04349087,3309.0,3308.0,0.84272494]
[1737890951548,2.34988147,3309.4,3308.0,0.84272494]
[1737890951749,0.2786001,3309.3,3308.0,0.84272494]
[1737890951950,0.04361195,3309.3,3308.0,0.84272494]
[1737890953383,0.04361195,3309.3,3308.2,0.8125]
[1737890953686,0.04361195,3309.3,3308.4,0.8125]
[1737890953983,0.04382006,3309.2,3308.6,0.8125]
[1737890954180,0.59302775,3309.8,3308.6,0.8125]
[1737890954386,0.04382006,3309.1,3308.7,0.84271922]
[1737890954581,0.59302775,3309.8,3308.7,0.84271922]
[1737890954882,0.29429092,3309.7,3308.7,0.8125]
[1737890955083,0.33815258,3309.7,3308.7,0.8125]
[1737890958300,0.33815258,3309.7,3308.0,0.8316]
[1737890960466,0.55,3309.6,3308.0,0.8316]
[1737890960795,2.34988147,3309.5,3308.0,0.8316]
[1737890961016,0.29437242,3309.4,3308.0,0.8316]
[1737890961165,0.33809032,3309.4,3308.0,0.8316]
[1737890961675,0.61557621,3309.3,3308.0,0.8316]
[1737890962107,0.55,3309.2,3308.0,0.8316]
[1737890962317,0.5937179,3309.2,3308.0,0.8316]
[1737890965903,3.5937179,3309.2,3308.0,0.8316]
[1737890966112,2.77081088,3309.1,3308.0,0.8316]
[1737890966605,0.04348709,3309.0,3308.0,0.8316]
[1737890971943,2.39336856,3309.0,3308.0,0.8316]
[1737890987271,0.61929461,3308.8,3308.0,0.8316]
[1737890987671,0.0424196,3308.7,3308.0,0.8316]
[1737890990191,2.34988147,3309.0,3308.0,0.8316]
[1737890990386,0.0423704,3308.6,3308.0,0.8316]
[1737890990681,2.34988147,3309.0,3308.0,0.8316]
[1737890991174,0.0423704,3308.9,3308.0,0.8316]
[1737891000965,0.0423704,3308.9,3308.2,0.7864]
[1737891001277,0.0423704,3308.9,3308.4,0.7864]
[1737891005401,0.0423704,3308.9,3308.5,0.03022396]
[1737891005598,0.0423704,3308.9,3308.6,0.7708]
[1737891008483,0.0423704,3308.9,3308.7,0.03022093]
[1737891008660,0.0423704,3308.9,3308.8,0.7708]
[1737891012970,0.0423704,3308.9,3307.8,0.7708]
[1737891017685,0.6116498,3309.3,3307.8,0.7708]
[1737891017893,0.04016631,3308.8,3307.8,0.7708]
[1737891018084,0.36116498,3309.2,3307.8,0.7708]
[1737891018572,0.04001098,3309.1,3307.8,0.7708]
[1737891022281,0.04001098,3309.1,3307.9,0.03022715]
[1737891022481,5.38989245,3309.1,3307.9,0.03022715]
[1737891022684,0.57510574,3309.0,3307.8,0.80102715]
[1737891022995,0.03999961,3308.9,3307.8,0.80102715]
[1737891026536,0.03999961,3308.9,3307.8,0.7708]
[1737891027101,1.7959724,3309.1,3307.8,0.7708]
[1737891027301,0.03867008,3308.8,3307.8,0.7708]
[1737891027504,0.21571374,3309.0,3307.8,0.7708]
[1737891027748,0.03867008,3308.7,3307.8,0.7708]
[1737891027954,0.21571374,3309.0,3307.8,0.7708]
[1737891028119,0.03867008,3308.6,3307.8,0.7708]
[1737891028314,0.21571374,3309.0,3307.8,0.7708]
[1737891028522,0.03867008,3308.5,3307.8,0.7708]
[1737891028727,1.7959724,3309.1,3307.8,0.7708]
[1737891029224,0.03866251,3309.0,3307.8,0.7708]
[1737891033273,0.18030783,3309.1,3307.8,0.7708]